{"text_format":"3","workbook":"xlsx","n_sheets":5,"sheets":["Информация о чемпионате","Общая инфраструктура","Рабочее место конкурсантов","Расходные материалы","Личный инструмент конкурсанта"],"read":"whole","date_system":"1900"}

{"sheet":"Информация о чемпионате","index":0,"n_rows":23,"n_cols":2,"rows_kept":23}
[]
[]
["Компетенция","Системы умного дома"]
["Наименование этапа Чемпионата","Региональный этап Чемпионата по профессиональному мастерству \"Профессионалы\" в 2026 г."]
["Субъект РФ","Красноярский край"]
["Базовая организация расположения конкурсной площадки","Краевое государственное бюджетное профессиональное образовательное учреждение \"Канский политехнический колледж\""]
["Адрес конкурсной площадки","663605, Красноярский край, г. Канск, ул. Красноярская, 26 стр.1"]
["Даты проведения","07.02.2026-12.02.2026"]
["Главный эксперт","Васильев Иван Иванович"]
["Электронная почта ГЭ","ykutivan@gmail.com"]
["Телефон ГЭ",89029912872]
["Технический эксперт","Рожнов Виталий Сергеевич"]
["Электронная почта ТЭ","vitopsys@mail.ru"]
["Телефон ТЭ",89232763395]
["Количество конкурсантов (команд)",5]
["Количество рабочих мест",5]
["Количество экспертов (ГЭ+ЭН+ИЭ)+ТАП",8]
[]
[]
["ЭН - эксперт-наставник"]
["ГЭ - главный эксперт"]
["ИЭ - индустриальный эксперт"]
["ТАП - технический администратор площадки"]

{"sheet":"Общая инфраструктура","index":1,"n_rows":95,"n_cols":8,"rows_kept":95,"merged":[[0,0,0,7],[1,0,1,7],[2,0,2,7],[3,0,3,7],[4,0,4,7],[5,0,5,7],[6,0,6,7],[7,0,7,7],[8,0,8,7],[9,0,9,7],[10,0,10,7],[11,0,11,1],[11,2,11,7],[12,0,12,1],[12,2,12,7],[13,0,13,7],[14,0,14,7],[15,0,15,7],[16,0,16,7],[17,0,17,7],[18,0,18,7],[19,0,19,7],[20,0,20,7],[21,0,21,7],[22,0,22,7],[23,0,23,7],[34,0,34,7],[35,0,35,7],[36,0,36,7],[37,0,37,7],[38,0,38,7],[39,0,39,7],[40,0,40,7],[41,0,41,7],[42,0,42,7],[43,0,43,7],[51,0,51,7],[55,0,55,7],[56,0,56,7],[57,0,57,7],[58,0,58,7],[59,0,59,7],[60,0,60,7],[61,0,61,7],[62,0,62,7],[63,0,63,7],[64,0,64,7],[71,0,71,7],[75,0,75,7],[76,0,76,7],[77,0,77,7],[78,0,78,7],[79,0,79,7],[80,0,80,7],[81,0,81,7],[82,0,82,7],[83,0,83,7],[84,0,84,7],[91,0,91,7]]}
["Инфраструктурный лист для оснащения конкурсной площадки "]
["Региональный этап Чемпионата по профессиональному мастерству \"Профессионалы\""]
["по компетенции"]
["Системы умного дома"]
["Основная информация о конкурсной площадке:"]
["Субъект Российской Федерации: Красноярский край"]
["Базовая организация расположения конкурсной площадки: КГБПОУ \"Канский политехнический колледж\""]
["Адрес базовой организации: Красноярский край, г. Канск, ул. Красноярская, 26 стр.1"]
["Главный эксперт: Васильев Иван Иванович"]
["Технический эксперт: Рожнов Виталий Сергеевич"]
["Количество экспертов (в том числе с главным экспертом): 5"]
["Количество конкурсантов (команд): ",null,5]
["Количество рабочих мест: ",null,5]
["Даты проведения: 07.02.2026-12.02.2026"]
["Общая зона конкурсной площадки (оборудование, инструмент, мебель, канцелярия)"]
["Требования к обеспечению зоны (коммуникации, площадь, сети, количество рабочих мест и др.): "]
["Площадь зоны: не менее 35 кв.м."]
["Освещение: Г-1 - 300 люкс "]
["Интернет : не требуется"]
["Электричество: 3х230В (2х2,0 кВт + 1х0,8 кВт) "]
["Контур заземления для электропитания и сети слаботочных подключений (при необходимости) : система TN-C; TN-C-S"]
["Покрытие пола: не требуется"]
["Подведение/ отведение ГХВС (при необходимости) : не требуется"]
["Подведение сжатого воздуха (при необходимости): не требуется"]
["№","Наименование ","Краткие (рамочные) технические характеристики","Вид","Количество","Единица измерения","Итоговое количество","Рекомендации представителей индустрии (указывается конкретное оборудование)"]
[1,"Офисный стол","1200х600х750","Мебель",1,"шт.",8]
[2,"Стул жесткий на вес 100 кг","Тип, модель, производитель - на усмотрение организаторов","Мебель",1,"шт.",12]
[3,"Ноутбук/компьютер","не ниже CPU i5 / RAM 16 GB / HDD 1Tb / GPU 2 GB / Win10 / 15.6\" Full HD (1920x1080)","Оборудование IT",1,"шт.",1]
[4,"Мышь для компьютера","Oklik","Оборудование IT",1,"шт.",1]
[5,"МФУ, А4, черно-белый + запасной картридж","Kyosera mpf 1120","Оборудование IT",1,"шт.",1]
[6,"Сетевой удлинитель на 5 розеток (длина 5 метров)","Фильтр, удлинитель Куб","Оборудование IT",2,"шт.",2]
[8,"Телевизор","Panasonik","Оборудование IT",1,"шт.",1]
[10,"Мусорная корзина","Пластик, 30 литров","Мебель",1,"шт.",2]
[11,"Кулер 19 л (холодная/горячая вода)","Питьевые фонтаны","Охрана труда",1,"шт",{"$f":"E34","v":1}]
["Комната Конкурсантов (по количеству конкурсантов)"]
["Требования к обеспечению зоны (коммуникации, площадь, сети, количество рабочих мест и др.): "]
["Площадь зоны: не менее 18 кв.м."]
["Освещение: Допустимо верхнее искусственное освещение ( не менее 200 люкс)"]
["Интернет : не требуется"]
["Электричество: 230В (1,0 кВт)"]
["Контур заземления для электропитания и сети слаботочных подключений (при необходимости) : система TN-C; TN-C-S"]
["Покрытие пола: нет требования  - 18 м2 на всю зону"]
["Подведение/ отведение ГХВС (при необходимости) : не требуется"]
["Подведение сжатого воздуха (при необходимости): не требуется"]
["№","Наименование ","Краткие (рамочные) технические характеристики","Вид","Количество","Единица измерения","Итоговое количество","Рекомендации представителей индустрии (указывается конкретное оборудование)"]
[1,"Офисный стол","1200х600х750","Мебель",1,"шт",2]
[2,"Стул жесткий на вес 100 кг","Стул металлический каркас, пластик вес 100 кг","Мебель",1,"шт.",5]
[3,"Кабинки для личных вещей и инструментов участников ","Кабинка металлическая","Мебель",1,"шт.",5]
[4,"Мусорная корзина","Пластик, 30 литров","Мебель",1,"шт.",1]
[5,"Вешалка для одежды","Кабинки для хранения верхней одежды","Мебель",1,"шт",1]
[6,"Сетевой удлинитель на 5 розеток (длина 5 метров)","Фильтр, удлинитель Куб","Оборудование IT",1,"шт.",1]
["Охрана труда и техника безопасности"]
["№","Наименование ","Краткие (рамочные) технические характеристики","Вид","Количество","Единица измерения","Итоговое количество","Рекомендации представителей индустрии (указывается конкретное оборудование)"]
[1,"Аптечка","Аптечка первой помощи ФЭС","Охрана труда",1,"шт",{"$f":"E54","v":1}]
[2,"Огнетушитель","Огнетушитель углекислотный","Охрана труда",1,"шт",{"$f":"E55","v":1}]
["Комната Экспертов (включая Главного эксперта) (по количеству экспертов)"]
["Требования к обеспечению зоны (коммуникации, площадь, сети, количество рабочих мест и др.): "]
["Площадь зоны: не менее 18 кв.м."]
["Освещение: Допустимо верхнее искусственное освещение ( не менее 200 люкс)"]
["Интернет : Wi-Fi "]
["Электричество: 230В (1,0 кВт)"]
["Контур заземления для электропитания и сети слаботочных подключений (при необходимости) : система TN-C; TN-C-S"]
["Покрытие пола: нет требования  - 18 м2 на всю зону"]
["Подведение/ отведение ГХВС (при необходимости) : не требуется"]
["Подведение сжатого воздуха (при необходимости): не требуется"]
["№","Наименование ","Краткие (рамочные) технические характеристики","Вид","Количество","Единица измерения","Итоговое количество","Рекомендации представителей индустрии (указывается конкретное оборудование)"]
[1,"Офисный стол","(ШхГхВ) от 1200х600х750","Мебель",1,"шт",5]
[2,"Стул жесткий на вес 100 кг","Стул металлический каркас, пластик вес 100 кг","Мебель",1,"шт.",6]
[3,"Сетевой удлинитель на 5 розеток (длина 5 метров)","Фильтр, удлинитель Куб","Оборудование IT",1,"шт.",1]
[4,"Вешалка для одежды","Кабинки для хранения верхней одежды","Мебель",1,"шт",1]
[5,"Мусорная корзина","Пластик, 30 литров","Мебель",1,"шт.",1]
["Охрана труда и техника безопасности"]
["№","Наименование ","Краткие (рамочные) технические характеристики","Вид","Количество","Единица измерения","Итоговое количество","Рекомендации представителей индустрии (указывается конкретное оборудование)"]
[1,"Аптечка","Аптечка первой помощи ФЭС","Охрана труда",1,"шт",{"$f":"E74","v":1}]
[2,"Огнетушитель","Огнетушитель углекислотный","Охрана труда",1,"шт",{"$f":"E75","v":1}]
["Складское помещение"]
["Требования к обеспечению зоны (коммуникации, площадь, сети, количество рабочих мест и др.): "]
["Площадь зоны: не менее 16 кв.м."]
["Освещение: Допустимо верхнее искусственное освещение ( не менее 200 люкс)"]
["Интернет : не требуется"]
["Электричество: 230В (1,0 кВт)"]
["Контур заземления для электропитания и сети слаботочных подключений (при необходимости) : система TN-C; TN-C-S"]
["Покрытие пола: нет требования  - 16 м2 на всю зону"]
["Подведение/ отведение ГХВС (при необходимости) : не требуется"]
["Подведение сжатого воздуха (при необходимости): не требуется"]
["№","Наименование ","Краткие (рамочные) технические характеристики","Вид","Количество","Единица измерения","Итоговое количество","Рекомендации представителей индустрии (указывается конкретное оборудование)"]
[1,"Офисный стол","мебель","Мебель",1,"шт",2]
[2,"Стул","мебель","Мебель",1,"шт",4]
[3,"Стелаж","мебель","Мебель",1,"шт",3]
[4,"Вешалка для одежды","Кабинки для хранения верхней одежды","Мебель",1,"шт",1]
[5,"Мусорная корзина","Пластик, 30 литров","Мебель",2,"шт.",2]
["Охрана труда и техника безопасности"]
["№","Наименование ","Краткие (рамочные) технические характеристики","Вид","Количество","Единица измерения","Итоговое количество","Рекомендации представителей индустрии (указывается конкретное оборудование)"]
[1,"Аптечка","Аптечка первой помощи ФЭС","Охрана труда",1,"шт",{"$f":"E94","v":1}]
[2,"Огнетушитель углекислотный ОУ-1 или аналог","Огнетушитель углекислотный","Охрана труда",1,"шт",{"$f":"E95","v":1}]

{"sheet":"Рабочее место конкурсантов","index":2,"n_rows":60,"n_cols":8,"rows_kept":60,"merged":[[0,0,0,7],[1,0,1,7],[2,0,2,7],[3,0,3,7],[4,0,4,7],[5,0,5,7],[6,0,6,7],[7,0,7,7],[8,0,8,7],[9,0,9,7],[10,0,10,7],[11,0,11,1],[11,2,11,7],[12,0,12,1],[12,2,12,7],[13,0,13,7],[14,0,14,7],[15,0,15,7],[16,0,16,7],[17,0,17,7],[18,0,18,7],[19,0,19,7],[20,0,20,7],[21,0,21,7],[22,0,22,7],[23,0,23,7],[56,0,56,7]]}
["Инфраструктурный лист для оснащения конкурсной площадки "]
["Региональный этап Чемпионата по профессиональному мастерству \"Профессионалы\""]
["по компетенции"]
["Системы умного дома"]
["Основная информация о конкурсной площадке:"]
["Субъект Российской Федерации: Красноярский край"]
["Базовая организация расположения конкурсной площадки: КГБПОУ \"Канский политехнический колледж\""]
["Адрес базовой организации: Красноярский край, г. Канск, ул. Красноярская, 26 стр.1"]
["Главный эксперт: Васильев Иван Иванович"]
["Технический эксперт: Рожнов Виталий Сергеевич"]
["Количество экспертов (в том числе с главным экспертом): 5"]
["Количество конкурсантов (команд): ",null,5]
["Количество рабочих мест: ",null,5]
["Даты проведения: 07.02.2026-12.02.2026"]
["Рабочее место Конкурсанта (основное оборудование, вспомогательное оборудование, инструмент (по количеству рабочих мест)"]
["Требования к обеспечению зоны (коммуникации, площадь, сети, количество рабочих мест и др.): "]
["Площадь зоны: не менее 15 кв.м."]
["Освещение: Г-1 - 300 люкс "]
["Интернет : Wi-Fi"]
["Электричество: 230В (2,0 кВт) на каждое рабочее место"]
["Контур заземления для электропитания и сети слаботочных подключений (при необходимости) : система TN-C; TN-C-S"]
["Покрытие пола: плитка напольная  - 75 м2 на всю зону"]
["Подведение/ отведение ГХВС (при необходимости) : не требуется"]
["Подведение сжатого воздуха (при необходимости): не требуется"]
["№","Наименование ","Краткие (рамочные) технические характеристики","Вид","Количество","Единица измерения","Итоговое количество","Рекомендации представителей индустрии (указывается конкретное оборудование)"]
[1,"Рабочая поверхность","Материал стен: фанера, толщина не менее 20мм., на жестком основании, размер: (слева, центр, справа) 1200х1600х1200мм., высота 2500мм, угол разворота: 110 градусов","рабочая поверхность",1,"шт.",{"$f":"E26*$C$13","v":5}]
[2,"Ящик для материалов (пластиковый короб)","размер не менее 560x390x280мм.","Оборудование",1,"шт.",{"$f":"E27*$C$13","v":5}]
[3,"Стремянка двухсторонняя","Ширина лестницы - 42см., кол-во секций - 2шт., кол-во ступеней - 5шт., макс.нагрузка - 150кг.,материал - алюминий, сталь, вес - 3,2 кг.","Оборудование",1,"шт.",5]
[4,"Стусло поворотное","Производитель на усмотрение организатора","Инструмент",1,"шт.",5]
[5,"Струбцина","Для фиксации стусла","Инструмент",2,"шт.",10]
[6,"Веник и совок","Комплект, пластик","Инструмент",1,"шт.",5]
[7,"Щетка-сметка ","Размер 30*15","Инструмент",1,"шт.",5]
[8,"Мусорная корзина "," 60 л.","Инструмент",1,"шт.",5]
[9,"Диэлектрический коврик","размер  750x750x6мм.","Оборудование",1,"шт.",5]
[10,"Верстак ","Размеры: не менее (Ш,Д,В) 700х1400х800мм.","Мебель",1,"шт.",5]
[11,"Инструментальная тележка трех ярусная открытая ","Трехъярусная, металл на колесах","Мебель",1,"шт.",5]
[12,"Корпус пластиковый "," ЩРН-П- не менее 10 модулей","Оборудование",1,"шт.",5]
[13,"Выключатель автоматический ","2Р 25А 4,5кА С","Оборудование",1,"шт.",5]
[14,"Автоматический выключатель дифференциального тока","2Р C16, 30мА","Оборудование",1,"шт.",5]
[15,"Выключатель автоматический ","1Р 6А 4,5кА С","Оборудование",1,"шт.",5]
[16,"Розетка 2-местная для открытой установки ","Shnaider elektrik","Оборудование",1,"шт.",5]
[17,"Провод ","ПВС 3х2,5","Расходные материалы",2,"м.",10]
[18,"Светильник светодиодный","Jazwei","Оборудование",1,"шт.",5]
[19,"Провод ","ПВС 3х0,75","Расходные материалы",5,"м.",25]
[20,"Провод ","ПВС 3х2,5 ","Расходные материалы",5,"м.",25]
[21,"Вилка переносная ","16А,230В 2Р+РЕ","Оборудование",1,"шт.",5]
[22,"Розетка стационарная","16А, 200-250В, Р+N+РЕ","Оборудование",1,"шт.",5]
[23,"Розетка переносная","16А, 200-250В, Р+N+РЕ","Оборудование",2,"шт.",10]
[24,"Провод ","ПВС 3х2,5 ","Расходные материалы",3,"м.",6]
[25,"Рабочий стол","(ШхГхВ) от 1200х600х750","Мебель",1,"шт.",{"$f":"E50*$C$13","v":5}]
[26,"Стул жесткий на вес 100 кг","Пластик основание металл","Мебель",1,"шт.",{"$f":"E51*$C$13","v":5}]
[27,"Ноутбук","не ниже CPU i5 / RAM 8 GB / HDD 512 GB / GPU 2 GB / Win10 / 15.6\" Full HD (1920x1080)","Оборудование IT",1,"шт.",5]
[28,"Мышь для компьютера","Oklic","Оборудование IT",1,"шт.",{"$f":"E53*$C$13","v":5}]
[29,"Программное обеспечение (windows, графический редактор, ПО для ПЛР и т.д.)","Owen Logic, ETS5","Оборудование IT",1,"шт.",{"$f":"E54*$C$13","v":5}]
[30,"Кабель для программирования ПЛР","Кабель для программирования","Оборудование IT",1,"шт.",{"$f":"E55*$C$13","v":5}]
[31,"Кабель для настройки KNX","Кабель для настройки KNX","Оборудование IT",1,"шт.",5]
["Охрана труда и техника безопасности"]
["№","Наименование ","Краткие (рамочные) технические характеристики","Вид","Количество","Единица измерения","Итоговое количество","Рекомендации представителей индустрии (указывается конкретное оборудование)"]
[1,"Аптечка","Аптечка первой помощи ФАС","Охрана труда",1,"шт",{"$f":"E59","v":1}]
[2,"Огнетушитель","Огнетушитель углекислотный","Охрана труда",1,"шт",{"$f":"E60","v":1}]

{"sheet":"Расходные материалы","index":3,"n_rows":102,"n_cols":8,"rows_kept":102,"merged":[[0,0,0,7],[1,0,1,7],[2,0,2,7],[3,0,3,7],[4,0,4,7],[5,0,5,7],[6,0,6,7],[7,0,7,7],[8,0,8,7],[9,0,9,7],[10,0,10,7],[11,0,11,1],[11,2,11,7],[12,0,12,1],[12,2,12,7],[13,0,13,7],[14,0,14,7]]}
["Инфраструктурный лист для оснащения конкурсной площадки "]
["Региональный этап Чемпионата по профессиональному мастерству \"Профессионалы\""]
["по компетенции"]
["Системы умного дома"]
["Основная информация о конкурсной площадке:"]
["Субъект Российской Федерации: Красноярский край"]
["Базовая организация расположения конкурсной площадки: КГБПОУ \"Канский политехнический колледж\""]
["Адрес базовой организации: Красноярский край, г. Канск, ул. Красноярская, 26 стр.1"]
["Главный эксперт: Васильев Иван Иванович"]
["Технический эксперт: Рожнов Виталий Сергеевич"]
["Количество экспертов (в том числе с главным экспертом): 5"]
["Количество конкурсантов (команд): ",null,5]
["Количество рабочих мест: ",null,5]
["Даты проведения: 07.02.2026-12.02.2026"]
["Рабочее место Конкурсанта (расходные материалы по количеству конкурсантов)"]
["№","Наименование ","Краткие (рамочные) технические характеристики","Вид","Количество (на 1 Конкурсанта)","Единица измерения","Итоговое количество (на 5 Конкурсантов)","Рекомендации представителей индустрии (указывается конкретное оборудование)"]
[1,"Кабельный канал","ШхГхД: 100х60х2000","Расходные материалы",4,"м.",{"$f":"E17*C12","v":20}]
[2,"Заглушка для кабельный канал 100х60","совместимая заглушка, универсальное исполнение, защелкивается на внешнюю сторону","Расходные материалы",2,"шт.",{"$f":"E18*C13","v":10}]
[3,"Кабельный канал","ШхГхД: 60х40х2000 ","Расходные материалы",2,"м.",{"$f":"E19*C12","v":10}]
[4,"Заглушка для кабельный канал 60х40","совместимая заглушка, универсальное исполнение, защелкивается на внешнюю сторону","Расходные материалы",2,"шт.",{"$f":"E20*C13","v":10}]
[5,"Кабельный канал","ШхГхД: 25х16х2000 ","Расходные материалы",4,"м.",{"$f":"C12*E21","v":20}]
[6,"Труба гладкая жесткая д 16","нар. диаметр: 16мм, внутр. диаметр не менее 14,5 мм, длина 3м","Расходные материалы",3,"м.",{"$f":"E22*C12","v":15}]
[7,"Труба гофрированная д 16","нар. диаметр: 16мм, внутр. диаметр не менее 15 мм с протяжкой","Расходные материалы",3,"м.",{"$f":"E23*C12","v":15}]
[8,"Поворот труба-труба","Диаметр 16 мм, С-образный, подходит для трубы гладкая жесткая д 16","Расходные материалы",3,"шт.",{"$f":"E24*C13","v":15}]
[9,"Держатель с защелкой д 16","материал: ударный полистирол, способ/тип крепления: отверстие под винт","Расходные материалы",30,"шт.",{"$f":"E25*C13","v":150}]
[10,"Труба гладкая жесткая д 20","нар. диаметр: 20 мм, внутр. диаметр не менее 18,5 мм, длина 3м","Расходные материалы",0.5,"м.",{"$f":"E26*C12","v":2.5}]
[11,"Держатель с защелкой д 20","материал: ударный полистирол, способ/тип крепления: отверстие под винт","Расходные материалы",5,"шт.",{"$f":"E27*$C$13","v":25}]
[12,"Муфта труба-коробка  IP65 д 16","степень защиты IP65, материал: ПВХ (PVC), модель или исполнение: резьбовая","Расходные материалы",9,"шт.",45]
[13,"Муфта труба-коробка  IP65 д 20","степень защиты IP65, материал: ПВХ (PVC), модель или исполнение: резьбовая","Расходные материалы",1,"шт.",5]
[14,"Лента светодиодная","24В, белый свет","Расходные материалы",1,"м.",{"$f":"E30*$C$12","v":5}]
[15,"Соединяющий коннектор ","для одноцветной светодиодной ленты 24В","Расходные материалы",2,"шт.",{"$f":"E31*$C$13","v":10}]
[16,"Алюминиевый накладной профиль для светодиодной ленты","по характеристикам светодиодной ленты, рассеиватель, 2 заглушки","Расходные материалы",1,"м.",5]
[17,"Зажим винтовой ","ЗВИ6 0,75-4мм","Расходные материалы",1,"упак.",5]
[18,"Вилка стационарная ","16А, 200-250В, Р+N+РЕ","Оборудование",1,"шт.",{"$f":"E34*$C$13","v":5}]
[19,"Кнопочный выключатель двухклавишный без фиксации","внутренней установки 10 А (3 контакта)","Оборудование",4,"шт.",20]
[20,"Кнопочный выключатель одноклавишный без фиксации","внутренней установки 10 А (2 контакта)","Оборудование",1,"шт.",5]
[21,"Розетка с з/к 16А","внутренней установки (3 контакта)","Оборудование",2,"шт.",10]
[22,"Корпус поста ","для кнопок управления 2 места","Оборудование",3,"шт.",15]
[23,"Коробка универсальная ","КМКУ 88х88х44","Оборудование",8,"шт.",{"$f":"E39*$C$12","v":40}]
[24,"Лампа сигнальная","d=22мм зеленый, 230В","Оборудование",3,"шт.",15]
[25,"Лампа сигнальная"," d=22мм красный, 230В","Оборудование",3,"шт.",15]
[26,"Светильник светодиодный ","230В, 8-12Вт  круг 160-180 мм\nВысота 60-85.0 мм","Оборудование",4,"шт.",20]
[27,"Корпус пластиковый КМПн прозрачная дверь","54 модуля, шины N,PE","Оборудование",1,"шт.",5]
[28,"Счетчик электрической энергии","однофазный, 60А, на DIN-рейку ","Оборудование",1,"шт.",{"$f":"E44*$C$13","v":5}]
[29,"Реле напряжения","однофазный, 25А, на DIN-рейку ","Оборудование",1,"шт.",5]
[30,"Автоматический выключатель ","2Р 25А 4,5кА х-ка С","Оборудование",1,"шт.",5]
[31,"Автоматический выключатель дифференциального тока ","2Р 16А 30мА х-ка С","Оборудование",2,"шт.",10]
[32,"Автоматический выключатель ","1Р 6А 4,5кА х-ка С","Оборудование",3,"шт.",15]
[33,"Блок питания ","24В, 15Вт, на DIN-рейку, 1 модуль","Оборудование",1,"шт.",5]
[34,"Источник питания KNX","Входное напряжение 180-240В, выходной ток 640мА, защита от короткого замыкания и перегрузки, 72х90х71","Оборудование",1,"шт.",5]
[35,"Релейный актуатор KNX","4 канала, номинальный ток коммутации 16А, 71,3х90,5х62","Оборудование",1,"шт.",5]
[36,"Актуатор жалюзи KNX","4 канала, номинальный ток коммутации 16А, 71,3х90,5х62","Оборудование",1,"шт.",5]
[37,"KNX USB интерфейс","Интерфейс USB 2.0 type B, питание от USB, программа конфигурации ETS 4 и старше, 36х90,5х71","Оборудование",1,"шт.",5]
[38,"Модуль дискретных входов/выходов","Количество входов/выходов - 8, количество общих входов/выходов - 4, входной/выходной ток - 2мА, входное/выходное напряжение - 3,3В","Оборудование",1,"шт.",5]
[39,"Датчик движения KNX","6 каналов детектора движения, питание по шине KNX (24В), рабочий диапазон 6м","Оборудование",1,"шт.",5]
[40,"Диммер KNX","Светодиодный диммер с 4 каналами, Максимальный ток на канал: 8 A. Максимальный ток на устройство: 20 А. Питание: 12-40В постоянного тока","Оборудование",1,"шт.",5]
[41,"Сенсорная панель KNX","Емкостной ЖК дисплей не менее 3.5” с фоновой подсветкой, 7 страниц пользователя, 4хAI/DI, датчик приближения и освещенности, датчик температуры, 2 термостата, пластиковая рамка, 86х86х27 мм","Оборудование",1,"шт.",5]
[42,"Клемма KNX PUSH WIRE","8 Pin Для кабеля 0,8мм Ø","Оборудование",3,"шт.",{"$f":"E58*C12","v":15}]
[43,"Кабель KNX","J-Y(St)Yh 2х2х0,8","Расходные материалы",7,"м.",{"$f":"E59*C12","v":35}]
[44,"Клемма винтовая двухуровневая","КВИ-4-2L 1.5-4мм2, серая","Расходные материалы",15,"шт.",{"$f":"E60*$C$13","v":75}]
[45,"Заглушка для клемм","для КВИ-4-2L 1.5-4мм2, серая","Расходные материалы",1,"шт.",{"$f":"E61*$C$13","v":5}]
[46,"Ограничитель на DIN-рейку ","металл","Расходные материалы",6,"шт.",30]
[47,"Кабель ","ВВГ 3х4 (синий; ж-зеленый; белый…) ","Расходные материалы",4,"м.",20]
[48,"Провод ","ПВС 3х0,75 ","Расходные материалы",30,"м.",{"$f":"E64*$C$12","v":150}]
[49,"Провод ","ПВС 3х2,5 ","Расходные материалы",4,"м.",20]
[50,"Провод ","ПВС 4х0,75 ","Расходные материалы",8,"м.",40]
[51,"Провод ","ПВ3 1х2,5 (белый) ","Расходные материалы",8,"м.",40]
[52,"Провод","ПВ3 1х2,5 (синий)","Расходные материалы",3,"м.",15]
[53,"Провод ","ПВ3 1х0,75 (белый) ","Расходные материалы",17,"м.",85]
[54,"Провод ","ПВ3 1х0,75 (синий)","Расходные материалы",7,"м.",35]
[55,"Наконечник штыревой ","НШвИ 0,75-8,0 (100шт/уп.)","Расходные материалы",2,"упак.",10]
[56,"Наконечник штыревой ","НШвИ 2х0.75-10 НГИ2 (50шт/уп.)","Расходные материалы",1,"упак.",5]
[57,"Наконечник штыревой ","НШвИ 2,5-8,2 (100шт/уп.)","Расходные материалы",1,"упак.",5]
[58,"Наконечник штыревой ","НШвИ 2х2.5-12 НГИ2 (50шт/уп.)","Расходные материалы",1,"упак.",5]
[59,"Саморезы универсальные 3,5х19","Металл","Расходные материалы",100,"шт.",500]
[60,"Саморезы универсальные 3,5х25","Металл","Расходные материалы",100,"шт.",{"$f":"E76*$C$13","v":500}]
[61,"Скоба круглая пластиковая","для крепления открытой проводки, диаметр зависит от провода ПВС 3х0,75 (4,5,6мм)","Расходные материалы",20,"шт.",{"$f":"E77*$C$12","v":100}]
[62,"Перчатки","Личные СИЗ участника","Охрана труда",1,"шт.",5]
[63,"Очки защитные","Личные СИЗ участника","Охрана труда",1,"шт.",5]
[64,"Обувь закрытого типа","Личные СИЗ участника","Охрана труда",1,"шт.",5]
[65,"Ручка шариковая","Ручка шариковая синяя","Расходные материалы",1,"шт.",{"$f":"E81*$C$13","v":5}]
[66,"Карандаш HB","Карандаш НВ","Расходные материалы",1,"шт.",5]
[67,"Стирательная резинка","Резинка стирательная","Расходные материалы",1,"шт.",5]
[68,"Бумага (500 листов)","Бумага 500 листов Чайка","Расходные материалы",2,"упак.",2]
[69,"Линейка (20-30 см)","Линейка металл","Расходные материалы",1,"шт.",{"$f":"E85*$C$13","v":5}]
[70,"Степлер со скобами","Степлет 10 мм","Расходные материалы",1,"шт.",2]
[71,"Степлер усиленный со скобами","Степлел 24 мм","Расходные материалы",1,"шт.",2]
[72,"Файлы А4 (100 л)","Файл пластиковый","Расходные материалы",1,"упак.",2]
[73,"Скотч 10м. ширина от 35мм","Скотч 10м","Расходные материалы",1,"шт.",2]
[74,"Ножницы","Ножницы ","Расходные материалы",1,"шт.",1]
[75,"Нож канцелярский с запасом лезвий","Нож канцелярский 20мм","Расходные материалы",1,"шт.",1]
[null,"Стенд \"Программирование ПЛК\" в составе:","Приложение 10","Оборудование",1,"шт.",5]
[75,"Щит пластиковый","ЩРн-П 12 ","Оборудование",1,"шт.",5]
[76,"Автоматический выключатель"," U=220В, с защитой от токов КЗ, перегрузки, утечки ","Оборудование",1,"шт.",5]
[77,"Программируемое реле(220)"," 230В/24В, 8 входов, 4 выхода","Оборудование",1,"шт.",5]
[78,"Блок питания (трансформатор)"," 230В/12-24В/ аналог","Оборудование",1,"шт.",5]
[79,"Кнопка управления ","1НО,1НЗ с самовозвратом","Оборудование",4,"шт.",20]
[80,"Выключатель/переключатель","1НО с фиксацией","Оборудование",4,"шт.",20]
[81,"Лампа индикаторная","230В/12-24В/ аналог","Оборудование",4,"шт.",20]
[82,"Провод ПВ3 ","от 1,0 до 1,5 мм²","Расходные материалы",15,"м.",75]
[83,"Наконечник гильза","от 1,0 до 1,5 мм²","Расходные материалы",50,"шт.",250]
[84,"Корпус поста ","для кнопок управления 4 места","Оборудование",3,"шт.",{"$f":"E102*$C$13","v":15}]

{"sheet":"Личный инструмент конкурсанта","index":4,"n_rows":32,"n_cols":7,"rows_kept":32,"merged":[[0,0,0,7],[1,0,1,7],[2,0,2,7],[3,0,3,7],[4,0,4,6]]}
["Инфраструктурный лист для оснащения конкурсной площадки "]
["Региональный этап Чемпионата по профессиональному мастерству \"Профессионалы\""]
["по компетенции"]
["Системы умного дома"]
["Рекомендуемый инструмент конкурсанта (тип, количество, производитель определяется участником самостоятельно)"]
["№","Наименование ","Краткие (рамочные) технические характеристики","Вид","Количество","Единица измерения","Примечание "]
[1,"Пояс для инструмента","Производитель, тип, на усмотрение участника"]
[2,"Пассатижи ","Производитель, тип, на усмотрение участника"]
[3,"Боковые кусачки ","Производитель, тип, на усмотрение участника"]
[4,"Устройство для снятия изоляции 0,2-6мм","Производитель, тип, на усмотрение участника"]
[5,"Нож для резки и зачистки кабеля с ручкой, с фиксатором","Производитель, тип, на усмотрение участника"]
[6,"Набор отверток плоских, крестовых","Производитель, тип, на усмотрение участника"]
[7,"Мультиметр универсальный","Производитель, тип, на усмотрение участника"]
[8,"Мегаомметр","Производитель, тип, на усмотрение участника"]
[9,"Уровень, L= 20-40см","Производитель, тип, на усмотрение участника"]
[10,"Уровень, L= 150см","Производитель, тип, на усмотрение участника"]
[11,"Молоток","Производитель, тип, на усмотрение участника"]
[12,"Набор бит","Производитель, тип, на усмотрение участника"]
[13,"Набор сверл, D= 1-10","Производитель, тип, на усмотрение участника"]
[14,"Сверло для отверстий  d=12-32мм","Производитель, тип, на усмотрение участника"]
[15,"Напильник плоский","Производитель, тип, на усмотрение участника"]
[16,"Напильник круглый","Производитель, тип, на усмотрение участника"]
[17,"Ящик для инструмента","Производитель, тип, на усмотрение участника"]
[18,"Рулетка","Производитель, тип, на усмотрение участника"]
[19,"Круглогубцы","Производитель, тип, на усмотрение участника"]
[20,"Угломер","Производитель, тип, на усмотрение участника"]
[21,"Шуруповерт аккумуляторный","Производитель, тип, на усмотрение участника"]
[22,"Клещи обжимные  0,5-6,0 мм2","Производитель, тип, на усмотрение участника"]
[23,"Кисть малярная (для уборки стружки)","Производитель, тип, на усмотрение участника"]
[24,"Угольник металлический","Производитель, тип, на усмотрение участника"]
[25,"Пылесос аккумуляторный","Производитель, тип, на усмотрение участника"]
[26,"Маркеры для проводников, клемм и зажимов","Производитель, тип, на усмотрение участника"]